[Event "Titled Tuesday Blitz October 31 Early 2023"]
[White "Goltseva, Ekaterina"]
[Black "Matthes, Aaron"]
[WhiteFideId "24173770"]
[BlackFideId "16227310"]
[WhiteElo "2508"]
[BlackElo "2313"]
[Result "1-0"]
[Round "3"]
[TimeControl "180+1"]
[Date "2023.10.31"]
[WhiteClock "0:01:14"]
[BlackClock "0:00:33"]
[Board "146"]

1. g3 {[%clk 0:02:49]}  d5 {[%clk 0:02:55]} 2. Bg2 {[%clk 0:02:48]}  g6 {[%clk 0:02:56]} 3. b3 {[%clk 0:02:48]}  Bg7 {[%clk 0:02:56]} 4. Nc3 {[%clk 0:02:49]}  c6 {[%clk 0:02:49]} 5. Bb2 {[%clk 0:02:49]}  e5 {[%clk 0:02:50]} 6. e3 {[%clk 0:02:48]}  Nf6 {[%clk 0:02:46]} 7. Nge2 {[%clk 0:02:48]}  O-O {[%clk 0:02:46]} 8. d4 {[%clk 0:02:47]}  e4 {[%clk 0:02:46]} 9. Qd2 {[%clk 0:02:42]}  Bg4 {[%clk 0:02:46]} 10. h3 {[%clk 0:02:42]}  Bxe2 {[%clk 0:02:36]} 11. Nxe2 {[%clk 0:02:42]}  a5 {[%clk 0:02:35]} 12. O-O {[%clk 0:02:35]}  a4 {[%clk 0:02:32]} 13. c4 {[%clk 0:02:33]}  Nbd7 {[%clk 0:02:26]} 14. Ba3 {[%clk 0:02:25]}  Re8 {[%clk 0:02:24]} 15. Nc3 {[%clk 0:02:25]}  Nb6 {[%clk 0:02:05]} 16. Qe2 {[%clk 0:02:22]}  Qd7 {[%clk 0:02:01]} 17. c5 {[%clk 0:02:17]}  axb3 {[%clk 0:01:57]} 18. axb3 {[%clk 0:02:15]}  Nc8 {[%clk 0:01:56]} 19. b4 {[%clk 0:02:15]}  b5 {[%clk 0:01:56]} 20. Bb2 {[%clk 0:02:11]}  Ne7 {[%clk 0:01:54]} 21. Qc2 {[%clk 0:02:00]}  Qb7 {[%clk 0:01:53]} 22. Rfb1 {[%clk 0:01:57]}  Nh5 {[%clk 0:01:45]} 23. Qd1 {[%clk 0:01:52]}  f5 {[%clk 0:01:45]} 24. Rxa8 {[%clk 0:01:47]}  Rxa8 {[%clk 0:01:43]} 25. Ra1 {[%clk 0:01:48]}  Ra6 {[%clk 0:01:41]} 26. Bf1 {[%clk 0:01:46]}  Qa7 {[%clk 0:01:39]} 27. Rxa6 {[%clk 0:01:46]}  Qxa6 {[%clk 0:01:40]} 28. Qa1 {[%clk 0:01:46]}  Qxa1 {[%clk 0:01:40]} 29. Bxa1 {[%clk 0:01:47]}  Nf6 {[%clk 0:01:37]} 30. Nxb5 {[%clk 0:01:39]}  cxb5 {[%clk 0:01:32]} 31. Bxb5 {[%clk 0:01:40]}  Kf7 {[%clk 0:01:32]} 32. Ba4 {[%clk 0:01:36]}  Ne8 {[%clk 0:01:27]} 33. b5 {[%clk 0:01:30]}  Nc7 {[%clk 0:01:19]} 34. Bc3 {[%clk 0:01:30]}  Ke6 {[%clk 0:01:18]} 35. Ba5 {[%clk 0:01:27]}  Ne8 {[%clk 0:00:56]} 36. b6 {[%clk 0:01:18]}  Nd6 {[%clk 0:00:38]} 37. cxd6 {[%clk 0:01:15]}  Kxd6 {[%clk 0:00:33]} 38. b7 {[%clk 0:01:14]} 1-0


[Site "https://www.chess.com"]

[Event "Titled Tuesday Blitz October 31 Early 2023"]
[White "Ronka, Erik"]
[Black "Fominykh, Maria"]
[WhiteFideId "505080"]
[BlackFideId "4142411"]
[WhiteElo "2506"]
[BlackElo "2275"]
[Result "1-0"]
[Round "3"]
[TimeControl "180+1"]
[Date "2023.10.31"]
[WhiteClock "0:00:02"]
[BlackClock "0:00:00"]
[Board "147"]

1. e4 {[%clk 0:02:24]}  d6 {[%clk 0:02:57]} 2. d4 {[%clk 0:02:22]}  Nf6 {[%clk 0:02:58]} 3. Nc3 {[%clk 0:02:11]}  e5 {[%clk 0:02:58]} 4. Nge2 {[%clk 0:02:11]}  Be7 {[%clk 0:02:57]} 5. f3 {[%clk 0:02:12]}  c6 {[%clk 0:02:57]} 6. Be3 {[%clk 0:02:11]}  b5 {[%clk 0:02:57]} 7. a3 {[%clk 0:02:11]}  a6 {[%clk 0:02:57]} 8. Qd2 {[%clk 0:02:11]}  Nbd7 {[%clk 0:02:57]} 9. g4 {[%clk 0:02:09]}  Qc7 {[%clk 0:02:56]} 10. h4 {[%clk 0:02:08]}  h5 {[%clk 0:02:43]} 11. g5 {[%clk 0:02:07]}  Nh7 {[%clk 0:02:43]} 12. Ng3 {[%clk 0:02:06]}  g6 {[%clk 0:02:43]} 13. O-O-O {[%clk 0:02:05]}  Nb6 {[%clk 0:02:33]} 14. f4 {[%clk 0:01:59]}  Bg4 {[%clk 0:02:29]} 15. Re1 {[%clk 0:01:55]}  O-O-O {[%clk 0:02:25]} 16. f5 {[%clk 0:01:50]}  c5 {[%clk 0:02:05]} 17. d5 {[%clk 0:01:46]}  Rd7 {[%clk 0:01:49]} 18. Kb1 {[%clk 0:01:38]}  Nc4 {[%clk 0:01:41]} 19. Bxc4 {[%clk 0:01:37]}  bxc4 {[%clk 0:01:42]} 20. Ka2 {[%clk 0:01:37]}  Qb6 {[%clk 0:01:37]} 21. Rb1 {[%clk 0:01:30]}  Rb7 {[%clk 0:01:37]} 22. b3 {[%clk 0:01:27]}  cxb3+ {[%clk 0:01:32]} 23. Rxb3 {[%clk 0:01:28]}  Qc7 {[%clk 0:01:30]} 24. Rxb7 {[%clk 0:01:25]}  Kxb7 {[%clk 0:01:30]} 25. Rb1+ {[%clk 0:01:21]}  Ka7 {[%clk 0:01:31]} 26. Na4 {[%clk 0:00:43]}  Rb8 {[%clk 0:01:26]} 27. Rxb8 {[%clk 0:00:43]}  Kxb8 {[%clk 0:01:24]} 28. Nb2 {[%clk 0:00:44]}  Nf8 {[%clk 0:01:17]} 29. Nc4 {[%clk 0:00:43]}  Nd7 {[%clk 0:01:17]} 30. Qc3 {[%clk 0:00:34]}  Ka7 {[%clk 0:01:11]} 31. Na5 {[%clk 0:00:34]}  Nb8 {[%clk 0:01:11]} 32. Nc4 {[%clk 0:00:22]}  Nd7 {[%clk 0:00:53]} 33. Qb3 {[%clk 0:00:23]}  Bf3 {[%clk 0:00:33]} 34. Qa4 {[%clk 0:00:16]}  Bd1 {[%clk 0:00:21]} 35. Na5 {[%clk 0:00:13]}  Nb8 {[%clk 0:00:16]} 36. Kb2 {[%clk 0:00:13]}  Qb6+ {[%clk 0:00:15]} 37. Kc1 {[%clk 0:00:13]}  Bf3 {[%clk 0:00:11]} 38. Qe8 {[%clk 0:00:08]}  Qxa5 {[%clk 0:00:02]} 39. Qxe7+ {[%clk 0:00:08]}  Ka8 {[%clk 0:00:03]} 40. Kb2 {[%clk 0:00:02]}  Qb5+ {[%clk 0:00:00]} 41. Ka1 {[%clk 0:00:02]} 1-0


[Site "https://www.chess.com"]

[Event "Titled Tuesday Blitz October 31 Early 2023"]
[White "Panda Sambit"]
[Black "Topalov, Aleksandar"]
[WhiteFideId "25091794"]
[BlackFideId "925659"]
[WhiteElo "2498"]
[BlackElo "2233"]
[Result "0-1"]
[Round "3"]
[TimeControl "180+1"]
[Date "2023.10.31"]
[WhiteClock "0:01:54"]
[BlackClock "0:02:29"]
[Board "149"]

1. d4 {[%clk 0:03:00]}  Nf6 {[%clk 0:02:59]} 2. Nf3 {[%clk 0:03:01]}  g6 {[%clk 0:02:59]} 3. c4 {[%clk 0:02:59]}  Bg7 {[%clk 0:02:59]} 4. Nc3 {[%clk 0:02:56]}  c5 {[%clk 0:02:59]} 5. d5 {[%clk 0:02:55]}  d6 {[%clk 0:02:59]} 6. e4 {[%clk 0:02:54]}  O-O {[%clk 0:02:59]} 7. Be2 {[%clk 0:02:55]}  e6 {[%clk 0:02:59]} 8. O-O {[%clk 0:02:55]}  Re8 {[%clk 0:02:59]} 9. h3 {[%clk 0:02:55]}  exd5 {[%clk 0:02:59]} 10. exd5 {[%clk 0:02:55]}  Nfd7 {[%clk 0:02:59]} 11. Bf4 {[%clk 0:02:51]}  Ne5 {[%clk 0:02:59]} 12. Nxe5 {[%clk 0:02:48]}  Bxe5 {[%clk 0:02:55]} 13. Bxe5 {[%clk 0:02:48]}  Rxe5 {[%clk 0:02:54]} 14. Qd2 {[%clk 0:02:49]}  f5 {[%clk 0:02:51]} 15. Rfe1 {[%clk 0:02:45]}  Nd7 {[%clk 0:02:51]} 16. f4 {[%clk 0:02:43]}  Re8 {[%clk 0:02:50]} 17. Bd3 {[%clk 0:02:43]}  Rxe1+ {[%clk 0:02:46]} 18. Qxe1 {[%clk 0:02:36]}  Nf6 {[%clk 0:02:43]} 19. Qh4 {[%clk 0:02:37]}  Bd7 {[%clk 0:02:41]} 20. Re1 {[%clk 0:02:37]}  Qf8 {[%clk 0:02:40]} 21. a3 {[%clk 0:02:03]}  Re8 {[%clk 0:02:39]} 22. Rxe8 {[%clk 0:02:03]}  Bxe8 {[%clk 0:02:40]} 23. b4 {[%clk 0:02:02]}  b6 {[%clk 0:02:38]} 24. b5 {[%clk 0:02:02]}  Qe7 {[%clk 0:02:36]} 25. Kh2 {[%clk 0:01:53]}  Ng4+ {[%clk 0:02:29]} 26. Kg3 {[%clk 0:01:54]}  Qe3# {[%clk 0:02:29]} 0-1


[Site "https://www.chess.com"]

[Event "Titled Tuesday Blitz October 31 Early 2023"]
[White "Perez Cruz, Adianet"]
[Black "Miszler, Levente"]
[WhiteFideId "3510115"]
[BlackFideId "763276"]
[WhiteElo "1943"]
[BlackElo "2419"]
[Result "0-1"]
[Round "3"]
[TimeControl "180+1"]
[Date "2023.10.31"]
[WhiteClock "0:01:36"]
[BlackClock "0:01:31"]
[Board "153"]

1. d4 {[%clk 0:03:00]}  Nf6 {[%clk 0:02:57]} 2. Bg5 {[%clk 0:03:00]}  c5 {[%clk 0:02:56]} 3. Bxf6 {[%clk 0:03:00]}  gxf6 {[%clk 0:02:55]} 4. d5 {[%clk 0:03:00]}  f5 {[%clk 0:02:49]} 5. c4 {[%clk 0:03:00]}  Bg7 {[%clk 0:02:49]} 6. Nc3 {[%clk 0:03:00]}  d6 {[%clk 0:02:42]} 7. e3 {[%clk 0:03:00]}  e5 {[%clk 0:02:38]} 8. g3 {[%clk 0:02:59]}  O-O {[%clk 0:02:37]} 9. Bg2 {[%clk 0:02:59]}  Nd7 {[%clk 0:02:36]} 10. Nf3 {[%clk 0:02:59]}  Nf6 {[%clk 0:02:36]} 11. h4 {[%clk 0:02:59]}  Ng4 {[%clk 0:02:33]} 12. a4 {[%clk 0:02:52]}  e4 {[%clk 0:02:32]} 13. Ng5 {[%clk 0:02:48]}  Ne5 {[%clk 0:02:27]} 14. O-O {[%clk 0:02:45]}  Nxc4 {[%clk 0:02:25]} 15. Qc2 {[%clk 0:02:38]}  Ne5 {[%clk 0:02:23]} 16. a5 {[%clk 0:02:31]}  Rb8 {[%clk 0:02:17]} 17. Nb5 {[%clk 0:02:18]}  a6 {[%clk 0:02:05]} 18. Nc3 {[%clk 0:02:18]}  b5 {[%clk 0:02:05]} 19. axb6 {[%clk 0:02:08]}  Qxb6 {[%clk 0:02:05]} 20. Rfb1 {[%clk 0:02:08]}  Qb3 {[%clk 0:01:59]} 21. Qxb3 {[%clk 0:02:04]}  Rxb3 {[%clk 0:02:00]} 22. Bf1 {[%clk 0:02:04]}  h6 {[%clk 0:01:52]} 23. Nh3 {[%clk 0:02:04]}  Nf3+ {[%clk 0:01:52]} 24. Kg2 {[%clk 0:01:55]}  Nd2 {[%clk 0:01:53]} 25. Rd1 {[%clk 0:01:50]}  Rxb2 {[%clk 0:01:52]} 26. Bxa6 {[%clk 0:01:47]}  Bxa6 {[%clk 0:01:41]} 27. Rxa6 {[%clk 0:01:48]}  Bxc3 {[%clk 0:01:41]} 28. Nf4 {[%clk 0:01:46]}  Be5 {[%clk 0:01:39]} 29. Nh5 {[%clk 0:01:44]}  Nc4 {[%clk 0:01:34]} 30. Kf1 {[%clk 0:01:36]}  Rfb8 {[%clk 0:01:31]} 0-1


[Site "https://www.chess.com"]

[Event "Titled Tuesday Blitz October 31 Early 2023"]
[White "Nekoo04"]
[Black "Ezat, Mohamed"]
[BlackFideId "10600906"]
[WhiteElo "2272"]
[BlackElo "2589"]
[Result "1-0"]
[Round "3"]
[TimeControl "180+1"]
[Date "2023.10.31"]
[WhiteClock "0:01:33"]
[BlackClock "0:00:00"]
[Board "158"]

1. d4 {[%clk 0:02:39]}  Nf6 {[%clk 0:01:47]} 2. c4 {[%clk 0:02:39]}  g6 {[%clk 0:01:47]} 3. Nc3 {[%clk 0:02:38]}  Bg7 {[%clk 0:01:48]} 4. e4 {[%clk 0:02:39]}  d6 {[%clk 0:01:48]} 5. Nf3 {[%clk 0:02:39]}  O-O {[%clk 0:01:48]} 6. Be2 {[%clk 0:02:40]}  e5 {[%clk 0:01:47]} 7. d5 {[%clk 0:02:41]}  a5 {[%clk 0:01:47]} 8. O-O {[%clk 0:02:41]}  Na6 {[%clk 0:01:47]} 9. Be3 {[%clk 0:02:38]}  Nc5 {[%clk 0:01:47]} 10. Nd2 {[%clk 0:02:38]}  Ne8 {[%clk 0:01:41]} 11. a3 {[%clk 0:02:33]}  Bd7 {[%clk 0:01:36]} 12. b4 {[%clk 0:02:29]}  axb4 {[%clk 0:01:31]} 13. axb4 {[%clk 0:02:29]}  Rxa1 {[%clk 0:01:31]} 14. Qxa1 {[%clk 0:02:28]}  Na6 {[%clk 0:01:27]} 15. Qa3 {[%clk 0:02:28]}  f5 {[%clk 0:01:25]} 16. f3 {[%clk 0:02:28]}  Qh4 {[%clk 0:01:19]} 17. c5 {[%clk 0:02:21]}  Bh6 {[%clk 0:01:18]} 18. Bf2 {[%clk 0:02:16]}  Qe7 {[%clk 0:01:16]} 19. Nb3 {[%clk 0:02:05]}  fxe4 {[%clk 0:01:12]} 20. Nxe4 {[%clk 0:02:04]}  Nf6 {[%clk 0:01:10]} 21. c6 {[%clk 0:02:03]}  Nxe4 {[%clk 0:00:00]} 22. fxe4 {[%clk 0:01:33]} 1-0


[Site "https://www.chess.com"]

[Event "Titled Tuesday Blitz October 31 Early 2023"]
[White "Malikova777"]
[Black "brm72"]
[WhiteElo "2271"]
[BlackElo "2571"]
[Result "0-1"]
[Round "3"]
[TimeControl "180+1"]
[Date "2023.10.31"]
[WhiteClock "0:01:07"]
[BlackClock "0:00:11"]
[Board "160"]

1. d4 {[%clk 0:02:59]}  Nf6 {[%clk 0:01:31]} 2. c4 {[%clk 0:02:59]}  e6 {[%clk 0:01:32]} 3. Nc3 {[%clk 0:02:58]}  Bb4 {[%clk 0:01:32]} 4. Qc2 {[%clk 0:02:58]}  O-O {[%clk 0:01:32]} 5. e4 {[%clk 0:02:59]}  d5 {[%clk 0:01:32]} 6. e5 {[%clk 0:02:59]}  Ne4 {[%clk 0:01:32]} 7. Bd3 {[%clk 0:02:59]}  c5 {[%clk 0:01:33]} 8. Nf3 {[%clk 0:02:59]}  cxd4 {[%clk 0:01:33]} 9. Nxd4 {[%clk 0:03:00]}  Nd7 {[%clk 0:01:33]} 10. O-O {[%clk 0:03:00]}  Bxc3 {[%clk 0:01:24]} 11. bxc3 {[%clk 0:02:59]}  Nxe5 {[%clk 0:01:24]} 12. Bxe4 {[%clk 0:02:50]}  dxe4 {[%clk 0:01:21]} 13. Qxe4 {[%clk 0:02:49]}  Nxc4 {[%clk 0:01:19]} 14. Be3 {[%clk 0:02:38]}  Nxe3 {[%clk 0:01:00]} 15. Qxe3 {[%clk 0:02:39]}  a6 {[%clk 0:00:59]} 16. Rab1 {[%clk 0:02:37]}  Qc7 {[%clk 0:00:59]} 17. Rfd1 {[%clk 0:02:26]}  b5 {[%clk 0:00:55]} 18. a4 {[%clk 0:02:25]}  bxa4 {[%clk 0:00:47]} 19. Ra1 {[%clk 0:02:24]}  Bd7 {[%clk 0:00:45]} 20. Nf3 {[%clk 0:02:16]}  Bb5 {[%clk 0:00:42]} 21. Ne5 {[%clk 0:02:14]}  Rac8 {[%clk 0:00:39]} 22. Rdc1 {[%clk 0:02:13]}  f6 {[%clk 0:00:39]} 23. Nf3 {[%clk 0:02:10]}  e5 {[%clk 0:00:38]} 24. Nd2 {[%clk 0:02:09]}  Qf7 {[%clk 0:00:30]} 25. c4 {[%clk 0:02:03]}  Bxc4 {[%clk 0:00:30]} 26. Rxa4 {[%clk 0:02:03]}  Bb5 {[%clk 0:00:29]} 27. Raa1 {[%clk 0:02:01]}  h6 {[%clk 0:00:28]} 28. Ne4 {[%clk 0:02:01]}  Rxc1+ {[%clk 0:00:25]} 29. Rxc1 {[%clk 0:02:00]}  Rd8 {[%clk 0:00:26]} 30. h3 {[%clk 0:01:58]}  Qd5 {[%clk 0:00:25]} 31. Ra1 {[%clk 0:01:52]}  Qd4 {[%clk 0:00:24]} 32. Qe1 {[%clk 0:01:48]}  Bc6 {[%clk 0:00:17]} 33. Ng3 {[%clk 0:01:39]}  Qd5 {[%clk 0:00:16]} 34. f3 {[%clk 0:01:39]}  Bb5 {[%clk 0:00:14]} 35. Kh1 {[%clk 0:01:37]}  g6 {[%clk 0:00:11]} 36. Ne4 {[%clk 0:01:35]}  Kg7 {[%clk 0:00:11]} 37. Nc3 {[%clk 0:01:34]}  Qc6 {[%clk 0:00:10]} 38. Ne4 {[%clk 0:01:31]}  h5 {[%clk 0:00:09]} 39. Rc1 {[%clk 0:01:30]}  Qe6 {[%clk 0:00:09]} 40. Qa5 {[%clk 0:01:27]}  Rd7 {[%clk 0:00:08]} 41. Nc5 {[%clk 0:01:27]}  Qd6 {[%clk 0:00:06]} 42. Nxd7 {[%clk 0:01:26]}  Bxd7 {[%clk 0:00:07]} 43. Qc7 {[%clk 0:01:26]}  Qd2 {[%clk 0:00:06]} 44. Ra1 {[%clk 0:01:24]}  Kh6 {[%clk 0:00:05]} 45. Rxa6 {[%clk 0:01:21]}  Bxh3 {[%clk 0:00:04]} 46. gxh3 {[%clk 0:01:17]}  Qe1+ {[%clk 0:00:04]} 47. Kg2 {[%clk 0:01:16]}  Qe2+ {[%clk 0:00:05]} 48. Kg3 {[%clk 0:01:16]}  Qxa6 {[%clk 0:00:06]} 49. Qf7 {[%clk 0:01:16]}  Kg5 {[%clk 0:00:03]} 50. Qd7 {[%clk 0:01:11]}  h4+ {[%clk 0:00:03]} 51. Kf2 {[%clk 0:01:10]}  Qa2+ {[%clk 0:00:04]} 52. Ke3 {[%clk 0:01:09]}  Qb3+ {[%clk 0:00:04]} 53. Ke2 {[%clk 0:01:09]}  Qb2+ {[%clk 0:00:05]} 54. Kf1 {[%clk 0:01:07]}  Qa1+ {[%clk 0:00:04]} 55. Kf2 {[%clk 0:01:07]}  Qd4+ {[%clk 0:00:05]} 56. Qxd4 {[%clk 0:01:07]}  exd4 {[%clk 0:00:06]} 57. Ke2 {[%clk 0:01:08]}  Kf4 {[%clk 0:00:06]} 58. Kd3 {[%clk 0:01:08]}  Kxf3 {[%clk 0:00:07]} 59. Kxd4 {[%clk 0:01:09]}  Kg3 {[%clk 0:00:07]} 60. Ke3 {[%clk 0:01:09]}  Kxh3 {[%clk 0:00:08]} 61. Kf3 {[%clk 0:01:10]}  Kh2 {[%clk 0:00:08]} 62. Kg4 {[%clk 0:01:10]}  g5 {[%clk 0:00:08]} 63. Kf3 {[%clk 0:01:10]}  f5 {[%clk 0:00:08]} 64. Kf2 {[%clk 0:01:11]}  Kh3 {[%clk 0:00:09]} 65. Kf1 {[%clk 0:01:11]}  Kg3 {[%clk 0:00:09]} 66. Kg1 {[%clk 0:01:12]}  h3 {[%clk 0:00:09]} 67. Kh1 {[%clk 0:01:13]}  f4 {[%clk 0:00:10]} 68. Kg1 {[%clk 0:01:14]}  g4 {[%clk 0:00:10]} 69. Kh1 {[%clk 0:01:14]}  f3 {[%clk 0:00:11]} 70. Kg1 {[%clk 0:01:15]}  f2+ {[%clk 0:00:11]} 71. Kf1 {[%clk 0:01:15]}  h2 {[%clk 0:00:11]} 72. Ke2 {[%clk 0:01:16]}  h1=Q {[%clk 0:00:12]} 73. Ke3 {[%clk 0:01:07]}  f1=Q {[%clk 0:00:11]} 0-1


[Site "https://www.chess.com"]

[Event "Titled Tuesday Blitz October 31 Early 2023"]
[White "Sarkar, Justin"]
[Black "Omariev, Maksim"]
[WhiteFideId "2010011"]
[BlackFideId "4193423"]
[WhiteElo "2269"]
[BlackElo "2530"]
[Result "0-1"]
[Round "3"]
[TimeControl "180+1"]
[Date "2023.10.31"]
[WhiteClock "0:00:00"]
[BlackClock "0:00:06"]
[Board "161"]

1. d4 {[%clk 0:02:33]}  h5 {[%clk 0:00:35]} 2. c4 {[%clk 0:02:27]}  h4 {[%clk 0:00:36]} 3. Nc3 {[%clk 0:02:25]}  d6 {[%clk 0:00:37]} 4. e4 {[%clk 0:02:22]}  h3 {[%clk 0:00:38]} 5. Nxh3 {[%clk 0:02:18]}  Bxh3 {[%clk 0:00:37]} 6. gxh3 {[%clk 0:02:18]}  e5 {[%clk 0:00:38]} 7. dxe5 {[%clk 0:02:04]}  dxe5 {[%clk 0:00:39]} 8. Qxd8+ {[%clk 0:02:03]}  Kxd8 {[%clk 0:00:40]} 9. f4 {[%clk 0:02:01]}  Nd7 {[%clk 0:00:37]} 10. f5 {[%clk 0:01:52]}  c6 {[%clk 0:00:32]} 11. Bg5+ {[%clk 0:01:40]}  Ngf6 {[%clk 0:00:27]} 12. O-O-O {[%clk 0:01:35]}  Kc7 {[%clk 0:00:27]} 13. a3 {[%clk 0:01:29]}  Bc5 {[%clk 0:00:27]} 14. Bg2 {[%clk 0:01:23]}  Rad8 {[%clk 0:00:18]} 15. b4 {[%clk 0:01:16]}  Bd4 {[%clk 0:00:18]} 16. Ne2 {[%clk 0:01:10]}  c5 {[%clk 0:00:19]} 17. Nxd4 {[%clk 0:01:06]}  cxd4 {[%clk 0:00:20]} 18. c5 {[%clk 0:00:59]}  b6 {[%clk 0:00:19]} 19. cxb6+ {[%clk 0:00:46]}  Kxb6 {[%clk 0:00:20]} 20. Kb2 {[%clk 0:00:39]}  Rc8 {[%clk 0:00:21]} 21. Rc1 {[%clk 0:00:37]}  a5 {[%clk 0:00:22]} 22. bxa5+ {[%clk 0:00:26]}  Kxa5 {[%clk 0:00:19]} 23. Bd2+ {[%clk 0:00:27]}  Ka4 {[%clk 0:00:17]} 24. Bf3 {[%clk 0:00:19]}  Rb8+ {[%clk 0:00:17]} 25. Bb4 {[%clk 0:00:19]}  Rhc8 {[%clk 0:00:16]} 26. Rhg1 {[%clk 0:00:13]}  Nh5 {[%clk 0:00:14]} 27. Bxh5 {[%clk 0:00:12]}  Nf6 {[%clk 0:00:13]} 28. Bxf7 {[%clk 0:00:10]}  Nxe4 {[%clk 0:00:12]} 29. Bb3+ {[%clk 0:00:10]}  Kb5 {[%clk 0:00:12]} 30. Rxc8 {[%clk 0:00:10]}  Rxc8 {[%clk 0:00:12]} 31. Rxg7 {[%clk 0:00:09]}  Nf2 {[%clk 0:00:12]} 32. f6 {[%clk 0:00:08]}  Ne4 {[%clk 0:00:12]} 33. f7 {[%clk 0:00:07]}  d3 {[%clk 0:00:11]} 34. Rg8 {[%clk 0:00:07]}  d2 {[%clk 0:00:10]} 35. Rxc8 {[%clk 0:00:06]}  d1=Q {[%clk 0:00:08]} 36. Bxd1 {[%clk 0:00:06]}  Nf2 {[%clk 0:00:09]} 37. Be2+ {[%clk 0:00:06]}  Ka4 {[%clk 0:00:08]} 38. f8=Q {[%clk 0:00:04]}  Nd3+ {[%clk 0:00:07]} 39. Kc3 {[%clk 0:00:00]}  e4 {[%clk 0:00:06]} 0-1


[Site "https://www.chess.com"]

[Event "Titled Tuesday Blitz October 31 Early 2023"]
[White "Camilla_Lee"]
[Black "De Souza, Cristiano Gomes"]
[BlackFideId "2151758"]
[WhiteElo "2504"]
[BlackElo "2246"]
[Result "1-0"]
[Round "3"]
[TimeControl "180+1"]
[Date "2023.10.31"]
[WhiteClock "0:00:05"]
[BlackClock "0:00:04"]
[Board "164"]

1. e4 {[%clk 0:03:00]}  c5 {[%clk 0:01:08]} 2. Nf3 {[%clk 0:02:55]}  d6 {[%clk 0:01:09]} 3. d4 {[%clk 0:02:55]}  cxd4 {[%clk 0:01:09]} 4. Nxd4 {[%clk 0:02:55]}  Nf6 {[%clk 0:01:10]} 5. Nc3 {[%clk 0:02:56]}  g6 {[%clk 0:01:10]} 6. Be3 {[%clk 0:02:56]}  Bg7 {[%clk 0:01:11]} 7. f3 {[%clk 0:02:55]}  O-O {[%clk 0:01:12]} 8. Qd2 {[%clk 0:02:50]}  Nc6 {[%clk 0:01:12]} 9. Bc4 {[%clk 0:02:51]}  Bd7 {[%clk 0:01:10]} 10. Bb3 {[%clk 0:02:51]}  Rc8 {[%clk 0:01:10]} 11. h4 {[%clk 0:02:48]}  h5 {[%clk 0:01:08]} 12. O-O-O {[%clk 0:02:47]}  Ne5 {[%clk 0:01:08]} 13. Bh6 {[%clk 0:02:46]}  Qa5 {[%clk 0:01:07]} 14. Bxg7 {[%clk 0:02:44]}  Kxg7 {[%clk 0:01:08]} 15. Kb1 {[%clk 0:02:32]}  Nc4 {[%clk 0:01:06]} 16. Bxc4 {[%clk 0:02:30]}  Rxc4 {[%clk 0:01:06]} 17. Nb3 {[%clk 0:02:30]}  Qc7 {[%clk 0:01:00]} 18. Ne2 {[%clk 0:02:23]}  Rc8 {[%clk 0:00:57]} 19. c3 {[%clk 0:02:23]}  Be6 {[%clk 0:00:49]} 20. Nbd4 {[%clk 0:02:12]}  Qd7 {[%clk 0:00:39]} 21. Nxe6+ {[%clk 0:02:10]}  Qxe6 {[%clk 0:00:38]} 22. Nf4 {[%clk 0:02:10]}  Qe5 {[%clk 0:00:34]} 23. Nd5 {[%clk 0:02:10]}  Nxd5 {[%clk 0:00:34]} 24. Qxd5 {[%clk 0:02:10]}  R8c5 {[%clk 0:00:26]} 25. Qxe5+ {[%clk 0:02:10]}  Rxe5 {[%clk 0:00:25]} 26. Rd4 {[%clk 0:02:09]}  Rc7 {[%clk 0:00:20]} 27. Rhd1 {[%clk 0:02:08]}  f5 {[%clk 0:00:20]} 28. Rd5 {[%clk 0:02:06]}  Rxd5 {[%clk 0:00:18]} 29. Rxd5 {[%clk 0:02:02]}  Kf6 {[%clk 0:00:19]} 30. exf5 {[%clk 0:02:00]}  gxf5 {[%clk 0:00:20]} 31. Kc2 {[%clk 0:02:00]}  Ke6 {[%clk 0:00:20]} 32. Rd4 {[%clk 0:02:00]}  Rc5 {[%clk 0:00:20]} 33. Kd3 {[%clk 0:01:58]}  Rd5 {[%clk 0:00:20]} 34. Ke3 {[%clk 0:01:52]}  Rxd4 {[%clk 0:00:21]} 35. Kxd4 {[%clk 0:01:31]}  b5 {[%clk 0:00:21]} 36. c4 {[%clk 0:01:26]}  a6 {[%clk 0:00:20]} 37. cxb5 {[%clk 0:01:25]}  axb5 {[%clk 0:00:19]} 38. a3 {[%clk 0:01:23]}  Kd7 {[%clk 0:00:18]} 39. b3 {[%clk 0:01:16]}  Kc6 {[%clk 0:00:17]} 40. a4 {[%clk 0:01:14]}  bxa4 {[%clk 0:00:16]} 41. bxa4 {[%clk 0:01:14]}  e5+ {[%clk 0:00:17]} 42. Kd3 {[%clk 0:01:03]}  d5 {[%clk 0:00:17]} 43. g4 {[%clk 0:01:01]}  fxg4 {[%clk 0:00:17]} 44. fxg4 {[%clk 0:01:01]}  hxg4 {[%clk 0:00:17]} 45. h5 {[%clk 0:01:01]}  e4+ {[%clk 0:00:18]} 46. Ke2 {[%clk 0:01:01]}  d4 {[%clk 0:00:17]} 47. h6 {[%clk 0:01:01]}  d3+ {[%clk 0:00:17]} 48. Ke3 {[%clk 0:00:19]}  g3 {[%clk 0:00:17]} 49. h7 {[%clk 0:00:19]}  g2 {[%clk 0:00:17]} 50. Kf2 {[%clk 0:00:20]}  d2 {[%clk 0:00:17]} 51. h8=Q {[%clk 0:00:17]}  g1=Q+ {[%clk 0:00:13]} 52. Kxg1 {[%clk 0:00:16]}  d1=Q+ {[%clk 0:00:13]} 53. Kh2 {[%clk 0:00:09]}  Qe2+ {[%clk 0:00:11]} 54. Kg1 {[%clk 0:00:07]}  Qg4+ {[%clk 0:00:10]} 55. Kf2 {[%clk 0:00:04]}  Qf3+ {[%clk 0:00:10]} 56. Ke1 {[%clk 0:00:05]}  e3 {[%clk 0:00:04]} 57. Qa8+ {[%clk 0:00:05]} 1-0


[Site "https://www.chess.com"]

[Event "Titled Tuesday Blitz October 31 Early 2023"]
[White "Shishkov, Andrei"]
[Black "Ruge, Edison"]
[WhiteFideId "4500563"]
[BlackFideId "4401000"]
[WhiteElo "2454"]
[BlackElo "2239"]
[Result "0-1"]
[Round "3"]
[TimeControl "180+1"]
[Date "2023.10.31"]
[WhiteClock "0:00:08"]
[BlackClock "0:00:23"]
[Board "168"]

1. d4 {[%clk 0:02:52]}  d5 {[%clk 0:02:59]} 2. c4 {[%clk 0:02:52]}  e5 {[%clk 0:02:58]} 3. dxe5 {[%clk 0:02:52]}  d4 {[%clk 0:02:58]} 4. Nf3 {[%clk 0:02:51]}  Nc6 {[%clk 0:02:59]} 5. a3 {[%clk 0:02:50]}  Bg4 {[%clk 0:02:59]} 6. Nbd2 {[%clk 0:02:49]}  a5 {[%clk 0:02:59]} 7. h3 {[%clk 0:02:44]}  Bh5 {[%clk 0:02:57]} 8. g4 {[%clk 0:02:44]}  Bg6 {[%clk 0:02:56]} 9. Bg2 {[%clk 0:02:45]}  Bc5 {[%clk 0:02:53]} 10. b3 {[%clk 0:02:38]}  h5 {[%clk 0:02:50]} 11. g5 {[%clk 0:02:34]}  h4 {[%clk 0:02:50]} 12. Bb2 {[%clk 0:02:32]}  Nge7 {[%clk 0:02:36]} 13. O-O {[%clk 0:02:29]}  Nf5 {[%clk 0:02:16]} 14. Ne4 {[%clk 0:02:20]}  Ba7 {[%clk 0:02:15]} 15. c5 {[%clk 0:02:12]}  Qe7 {[%clk 0:02:06]} 16. Nxd4 {[%clk 0:02:03]}  Nxe5 {[%clk 0:01:50]} 17. f4 {[%clk 0:01:40]}  Ne3 {[%clk 0:01:34]} 18. Qc1 {[%clk 0:01:26]}  Nxg2 {[%clk 0:01:32]} 19. f5 {[%clk 0:01:14]}  Bh5 {[%clk 0:01:17]} 20. Kxg2 {[%clk 0:01:12]}  Rd8 {[%clk 0:01:06]} 21. f6 {[%clk 0:01:05]}  gxf6 {[%clk 0:00:58]} 22. Nxf6+ {[%clk 0:01:06]}  Kf8 {[%clk 0:00:57]} 23. b4 {[%clk 0:00:49]}  Bg6 {[%clk 0:00:49]} 24. Qf4 {[%clk 0:00:47]}  Nc4 {[%clk 0:00:43]} 25. Bc3 {[%clk 0:00:23]}  Ne3+ {[%clk 0:00:42]} 26. Kg1 {[%clk 0:00:21]}  Nxf1 {[%clk 0:00:42]} 27. Rxf1 {[%clk 0:00:21]}  c6 {[%clk 0:00:38]} 28. Nf5 {[%clk 0:00:16]}  Bxf5 {[%clk 0:00:35]} 29. Qxf5 {[%clk 0:00:16]}  Bb8 {[%clk 0:00:36]} 30. Nh7+ {[%clk 0:00:13]}  Rxh7 {[%clk 0:00:34]} 31. Qxh7 {[%clk 0:00:14]}  Qe3+ {[%clk 0:00:34]} 32. Rf2 {[%clk 0:00:12]}  Rd1+ {[%clk 0:00:23]} 33. Kg2 {[%clk 0:00:08]}  Qg3# {[%clk 0:00:23]} 0-1


[Site "https://www.chess.com"]